fUSD/lending_fUSD_20250911
["ID","MTS","AMOUNT","RATE_DAILY","PERIOD"]
[384955836,1757633516418,-2204.19,0.00028493,7]
[384955837,1757633516429,-400.0,0.00028493,7]
[384955838,1757633516439,-400.0,0.00028493,7]
[384955839,1757633516450,-406.49,0.00028493,7]
[384955840,1757633516459,-754.57,0.00028493,7]
[384955841,1757633516469,-1273.24,0.00028493,7]
[384955842,1757633516478,-1178.64,0.00028493,7]
[384955843,1757633516488,-1522.42,0.00028493,7]
[384955844,1757633516497,-453.02,0.00028493,7]
[384955845,1757633516507,-400.0,0.00028493,7]
[384955846,1757633516516,-400.0,0.00028493,7]
[384955847,1757633516525,-949.12,0.00028493,7]
[384955848,1757633516535,-1083.88,0.00028493,7]
[384955849,1757633516544,-1959.23,0.00028493,7]
[384955850,1757633516554,-1156.25,0.00028493,7]
[384955851,1757633516565,-1599.37,0.00028493,7]
[384955852,1757633516575,-1233.31,0.00028493,7]
[384955853,1757633516584,-591.65,0.00028493,7]
[384955854,1757633516594,-400.0,0.00028493,7]
[384955855,1757633516604,-1169.6,0.00028493,7]
[384955856,1757633516614,-400.0,0.00028493,7]
[384955857,1757633516624,-609.33,0.00028493,7]
[384955858,1757633516634,-505.59,0.00028493,7]
[384955859,1757633516645,-400.0,0.00028493,7]
[384955860,1757633516656,-1184.35,0.00028493,7]
[384955861,1757633516665,-1314.36,0.00028493,7]
[384955862,1757633516675,-779.61,0.00028493,7]
[384955863,1757633516684,-2191.34,0.00028493,7]
[384955864,1757633516694,-2138.23,0.00028493,7]
[384955865,1757633516704,-3752.4,0.00028493,7]
[384955866,1757633516713,-1286.81,0.00028493,7]
[384955867,1757633516723,-1836.16,0.00028493,7]
[384955868,1757633516733,-400.0,0.00028493,7]
[384955869,1757633516742,-400.0,0.00028493,7]
[384955870,1757633516753,-2397.01,0.00028493,7]
[384955871,1757633516765,-715.33,0.00028493,7]
[384955872,1757633516775,-1204.85,0.00028493,7]
[384955873,1757633516785,-1264.96,0.00028493,7]
[384955874,1757633516794,-400.0,0.00028493,7]
[384955875,1757633516804,-466.17,0.00028493,7]
[384955876,1757633516814,-2021.87,0.00028493,7]
[384955877,1757633516825,-400.0,0.00028493,7]
[384955878,1757633516835,-1299.21,0.00028493,7]
[384955879,1757633516846,-2078.21,0.00028493,7]
[384955880,1757633516855,-2054.39,0.00028493,7]
[384955881,1757633516865,-1611.06,0.00028493,7]
[384955882,1757633516874,-3283.72,0.00028493,7]
[384955883,1757633516884,-2546.19,0.00028493,7]
[384955884,1757633516893,-625.24,0.00028493,7]
[384955885,1757633516902,-1010.54,0.00028493,7]
[384955886,1757633516912,-1133.37,0.00028493,7]
[384955887,1757633516922,-2788.83,0.00028493,7]
[384955888,1757633516932,-1350.88,0.00028493,7]
[384955889,1757633516943,-1161.6,0.00028493,7]
[384955890,1757633516953,-1239.86,0.00028493,7]
[384955891,1757633516964,-400.0,0.00028493,7]
[384955892,1757633516973,-3659.99,0.00028493,7]
[384955893,1757633516982,-400.0,0.00028493,7]
[384955894,1757633516992,-1058.57,0.00028493,7]
[384955895,1757633517002,-494.75775725,0.00028493,7]
[384955896,1757633517012,-870.59,0.00028493,7]
[384955897,1757633517022,-1051.01,0.00028493,7]
[384955898,1757633517032,-885.69,0.00028493,7]
[384955899,1757633517041,-1221.0,0.00028493,7]
[384955900,1757633517051,-400.0,0.00028493,7]
[384955901,1757633517060,-981.38,0.00028493,7]
[384955902,1757633517070,-2580.89,0.00028493,7]
[384955903,1757633517079,-401.69,0.00028493,7]
[384955904,1757633517089,-1325.12,0.00028493,7]
[384955905,1757633517100,-1406.34,0.00028493,7]
[384955906,1757633517109,-450.31,0.00028493,7]
[384955907,1757633517120,-1966.27,0.00028493,7]
[384955908,1757633517130,-508.18,0.00028493,7]
[384955909,1757633517140,-1031.57,0.00028493,7]
[384955910,1757633517150,-1144.2,0.00028493,7]
[384955911,1757633517160,-400.0,0.00028493,7]
[384955912,1757633517171,-2005.14,0.00028493,7]
[384955913,1757633517181,-400.0,0.00028493,7]
[384955914,1757633517190,-1338.86,0.00028493,7]
[384955915,1757633517199,-400.0,0.00028493,7]
[384955916,1757633517209,-400.0,0.00028493,7]
[384955917,1757633517218,-1705.5,0.00028493,7]
[384955918,1757633517227,-1384.85,0.00028493,7]
[384955919,1757633517236,-752.53,0.00028493,7]
[384955920,1757633517246,-1424.49,0.00028493,7]
[384955921,1757633517256,-1068.12,0.00028493,7]
[384955922,1757633517265,-1543.53,0.00028493,7]
[384955923,1757633517275,-1197.36,0.00028493,7]
[384955924,1757633517284,-1089.51,0.00028493,7]
[384955925,1757633517293,-1419.68,0.00028493,7]
[384955926,1757633517303,-987.91,0.00028493,7]
[384955927,1757633517312,-560.91,0.00028493,7]
[384955928,1757633517322,-1405.14,0.00028493,7]
[384955929,1757633517331,-507.06,0.00028493,7]
[384955930,1757633517340,-1107.15,0.00028493,7]
[384955931,1757633517350,-400.0,0.00028493,7]
[384955932,1757633517360,-407.66,0.00028493,7]
[384955933,1757633517369,-1286.63,0.00028493,7]
[384955934,1757633517379,-1615.55,0.00028493,7]
[384955935,1757633517388,-1227.53,0.00028493,7]
[384955936,1757633517397,-2361.95,0.00028493,7]
[384955937,1757633517407,-1700.02,0.00028493,7]
[384955938,1757633517416,-460.81,0.00028493,7]
[384955939,1757633517426,-1039.07,0.00028493,7]
[384955940,1757633517435,-1435.29,0.00028493,7]
[384955941,1757633517444,-1444.49,0.00028493,7]
[384955942,1757633517454,-726.73,0.00028493,7]
[384955943,1757633517463,-6639.42,0.00028493,7]
[384955944,1757633517473,-1359.39,0.00028493,7]
[384955945,1757633517492,-2478.99,0.00028493,7]
[384955946,1757633517503,-2076.21,0.00028493,7]
[384955947,1757633517514,-1098.13,0.00028493,7]
[384955948,1757633517524,-1378.72,0.00028493,7]
[384955949,1757633517535,-1274.1,0.00028493,7]
[384955950,1757633517548,-499.68,0.00028493,7]
[384955951,1757633517559,-1502.78,0.00028493,7]
[384955952,1757633517570,-400.0,0.00028493,7]
[384955953,1757633517580,-1042.46,0.00028493,7]
[384955954,1757633517591,-3024.01,0.00028493,7]
[384955955,1757633517602,-400.0,0.00028493,7]
[384955956,1757633517612,-1861.34,0.00028493,7]
[384955957,1757633517622,-400.0,0.00028493,7]
[384955958,1757633517634,-444.38,0.00028493,7]
[384955959,1757633517644,-1020.88,0.00028493,7]
[384955960,1757633517655,-2326.81,0.00028493,7]
[384955961,1757633517667,-3357.08,0.00028493,7]
[384955962,1757633517678,-1539.49,0.00028493,7]
[384955963,1757633517689,-407.4,0.00028493,7]
[384955964,1757633517699,-1135.17,0.00028493,7]
[384955965,1757633517709,-1001.4,0.00028493,7]
[384955966,1757633517719,-4286.71,0.00028493,7]
[384955967,1757633517728,-400.0,0.00028493,7]
[384955968,1757633517739,-400.0,0.00028493,7]
[384955969,1757633517749,-1178.15,0.00028493,7]
[384955970,1757633517759,-4759.47,0.00028493,7]
[384955971,1757633517769,-1137.02,0.00028493,7]
[384955972,1757633517779,-1095.27,0.00028493,7]
[384955973,1757633517790,-681.95,0.00028493,7]
[384955974,1757633517801,-1249.41,0.00028493,7]
[384955975,1757633517810,-4804.05,0.00028493,7]
[384955976,1757633517820,-923.45,0.00028493,7]
[384955977,1757633517831,-1384.54,0.00028493,7]
[384955978,1757633517841,-712.85,0.00028493,7]
[384955979,1757633517851,-2383.73,0.00028493,7]
[384955980,1757633517861,-1385.16,0.00028493,7]
[384955981,1757633517872,-5278.59,0.00028493,7]
[384955982,1757633517882,-1440.73,0.00028493,7]
[384955983,1757633517892,-909.93,0.00028493,7]
[384955984,1757633517903,-1917.55,0.00028493,7]
[384955985,1757633517913,-943.46,0.00028493,7]
[384955986,1757633517923,-400.0,0.00028493,7]
[384955987,1757633517934,-1768.75,0.00028493,7]
[384955988,1757633517949,-400.0,0.00028493,7]
[384955989,1757633517960,-1850.78,0.00028493,7]
[384955990,1757633517971,-400.0,0.00028493,7]
[384955991,1757633517981,-1414.65,0.00028493,7]
[384955992,1757633517991,-2522.98,0.00028493,7]
[384955993,1757633518000,-8915.5,0.00028493,7]
[384955994,1757633518010,-2293.05,0.00028493,7]
[384955995,1757633518021,-1506.19,0.00028493,7]
[384955996,1757633518030,-646.55,0.00028493,7]
[384955997,1757633518040,-1115.97,0.00028493,7]
[384955998,1757633518049,-1228.55,0.00028493,7]
[384955999,1757633518058,-400.0,0.00028493,7]
[384956000,1757633518068,-822.61,0.00028493,7]
[384956001,1757633518077,-2894.96,0.00028493,7]
[384956002,1757633518087,-400.0,0.00028493,7]
[384956003,1757633518096,-400.0,0.00028493,7]
[384956004,1757633518106,-1099.92,0.00028493,7]
[384956005,1757633518116,-1192.58,0.00028493,7]
[384956006,1757633518126,-1669.73,0.00028493,7]
[384956007,1757633518136,-1361.61,0.00028493,7]
[384956008,1757633518147,-1391.18,0.00028493,7]
[384956009,1757633518159,-400.0,0.00028493,7]
[384956010,1757633518171,-487.65,0.00028493,7]
[384956011,1757633518180,-1005.66,0.00028493,7]
[384956012,1757633518190,-400.0,0.00028493,7]
[384956013,1757633518199,-788.43,0.00028493,7]
[384956014,1757633518209,-4228.2,0.00028493,7]
[384956015,1757633518218,-1287.44,0.00028493,7]
[384956016,1757633518228,-581.85,0.00028493,7]
[384956017,1757633518238,-400.0,0.00028493,7]
[384956018,1757633518247,-632.0,0.00028493,7]
[384956019,1757633518257,-400.0,0.00028493,7]
[384956020,1757633518267,-492.57,0.00028493,7]
[384956021,1757633518277,-400.0,0.00028493,7]
[384956022,1757633518286,-674.36,0.00028493,7]
[384956023,1757633518421,-400.0,0.00028493,7]
[384956024,1757633518430,-1523.77,0.00028493,7]
[384956025,1757633518440,-3392.45,0.00028493,7]
[384956026,1757633518449,-788.79,0.00028493,7]
[384956027,1757633518458,-400.0,0.00028493,7]
[384956028,1757633518467,-693.52,0.00028493,7]
[384956029,1757633518476,-633.62,0.00028493,7]
[384956030,1757633518485,-571.68,0.00028493,7]
[384956031,1757633518495,-3716.07,0.00028493,7]
[384956032,1757633518504,-400.0,0.00028493,7]
[384956033,1757633518513,-400.0,0.00028493,7]
[384956034,1757633518522,-2442.24,0.00028493,7]
[384956035,1757633518531,-993.53,0.00028493,7]
[384956036,1757633518540,-1414.86,0.00028493,7]
[384956037,1757633518549,-492.14,0.00028493,7]
[384956038,1757633518559,-1644.51,0.00028493,7]
[384956039,1757633518570,-1049.17,0.00028493,7]
[384956040,1757633518582,-730.7,0.00028493,7]
[384956041,1757633518592,-625.87,0.00028493,7]
[384956042,1757633518601,-3663.04,0.00028493,7]
[384956043,1757633518610,-444.87,0.00028493,7]
[384956044,1757633518620,-591.04,0.00028493,7]
[384956045,1757633518629,-1449.18,0.00028493,7]
[384956046,1757633518638,-3224.91,0.00028493,7]
[384956047,1757633518648,-1564.29,0.00028493,7]
[384956048,1757633518659,-1008.68,0.00028493,7]
[384956049,1757633518669,-1052.95,0.00028493,7]
[384956050,1757633518678,-669.52,0.00028493,7]
[384956051,1757633518687,-400.0,0.00028493,7]
[384956052,1757633518696,-1219.73,0.00028493,7]
[384956053,1757633518705,-990.64,0.00028493,7]
[384956054,1757633518715,-436.74,0.00028493,7]
[384956055,1757633518723,-464.91,0.00028493,7]
[384956056,1757633518733,-400.0,0.00028493,7]
[384956057,1757633518742,-4257.44,0.00028493,7]
[384956058,1757633518752,-400.0,0.00028493,7]
[384956059,1757633518762,-400.0,0.00028493,7]
[384956060,1757633518772,-1555.95,0.00028493,7]
[384956061,1757633518781,-400.0,0.00028493,7]
[384956062,1757633518791,-1593.33,0.00028493,7]
[384956063,1757633518800,-1898.89,0.00028493,7]
[384956064,1757633518809,-482.11,0.00028493,7]
[384956065,1757633518818,-424.44,0.00028493,7]
[384956066,1757633518828,-3442.45,0.000285,7]
[384956067,1757633518837,-1000.0,0.000285,2]
[384956068,1757633518847,-5321.46,0.000285,2]
[384956069,1757633518856,-6062.02708779,0.000286,2]
[384956070,1757633518865,-160.76253675,0.00028695,7]
[384956071,1757633518875,-393.71851683,0.00028711,6]
[384956072,1757633518884,-300.0,0.00028766,10]
[384956073,1757633518893,-300.0,0.00028766,10]
[384956074,1757633518903,-300.0,0.00028766,10]
[384956075,1757633518913,-300.0,0.00028766,10]
[384956076,1757633518922,-432.28142845,0.00028766,10]
[384956077,1757633518934,-300.0,0.00028766,10]
[384956078,1757633518947,-152.0,0.00028767,3]
[384956079,1757633518958,-152.0,0.00028767,3]
[384956080,1757633518967,-492.45,0.00028767,7]
[384956081,1757633518977,-250.0,0.00028767,2]
[384956082,1757633518986,-437.0,0.00028767,7]
[384956083,1757633518996,-500.0,0.00028767,7]
[384956084,1757633519006,-3072.0,0.00028767,7]
[384956085,1757633519015,-195.18368675,0.00028767,7]
[384956086,1757633519025,-500.0,0.00028767,7]
[384956087,1757633519035,-500.0,0.00028767,7]
[384956088,1757633519044,-500.0,0.00028767,7]
[384956089,1757633519054,-164.62340589,0.00028767,7]
[384956090,1757633519063,-165.85397016,0.00028767,7]
[384956091,1757633519073,-158.085363,0.00028767,7]
[384956092,1757633519082,-158.254711,0.00028767,7]
[384956093,1757633519092,-424.01,0.00028767,7]
[384956094,1757633519101,-400.0,0.00028767,7]
[384956095,1757633519111,-400.0,0.00028767,7]
[384956096,1757633519120,-644.7,0.00028767,7]
[384956097,1757633519130,-939.76,0.00028767,7]
[384956098,1757633519139,-568.64,0.00028767,7]
[384956099,1757633519148,-846.97,0.00028767,7]
[384956100,1757633519157,-400.0,0.00028767,7]
[384956101,1757633519167,-400.0,0.00028767,7]
[384956102,1757633519176,-400.0,0.00028767,7]
[384956103,1757633519186,-1152.69,0.00028767,7]
[384956104,1757633519195,-400.0,0.00028767,7]
[384956105,1757633519206,-961.48,0.00028767,7]
[384956106,1757633519215,-400.0,0.00028767,7]
[384956107,1757633519225,-629.39,0.00028767,7]
[384956108,1757633519235,-400.0,0.00028767,7]
[384956109,1757633519245,-831.63,0.00028767,7]
[384956110,1757633519255,-400.0,0.00028767,7]
[384956111,1757633519267,-400.0,0.00028767,7]
[384956112,1757633519276,-800.48,0.00028767,7]
[384956113,1757633519285,-400.0,0.00028767,7]
[384956114,1757633519295,-400.0,0.00028767,7]
[384956115,1757633519305,-1171.77,0.00028767,7]
[384956116,1757633519314,-400.0,0.00028767,7]
[384956117,1757633519323,-400.0,0.00028767,7]
[384956118,1757633519333,-400.63,0.00028767,7]
[384956119,1757633519342,-478.53,0.00028767,7]
[384956120,1757633519352,-1120.26,0.00028767,7]
[384956121,1757633519361,-511.9,0.00028767,7]
[384956122,1757633519370,-400.0,0.00028767,7]
[384956123,1757633519379,-2189.62,0.00028767,7]
[384956124,1757633519388,-400.0,0.00028767,7]
[384956125,1757633519398,-400.0,0.00028767,7]
[384956126,1757633519407,-460.59900704,0.00028767,7]
[384956127,1757633519417,-400.0,0.00028767,7]
[384956128,1757633519426,-400.0,0.00028767,7]
[384956129,1757633519436,-1070.24,0.00028767,7]
[384956130,1757633519445,-726.75,0.00028767,7]
[384956131,1757633519455,-400.0,0.00028767,7]
[384956132,1757633519464,-400.0,0.00028767,7]
[384956133,1757633519473,-400.0,0.00028767,7]
[384956134,1757633519483,-531.0,0.00028767,7]
[384956135,1757633519492,-1051.33,0.00028767,7]
[384956136,1757633519501,-400.0,0.00028767,7]
[384956137,1757633519511,-400.0,0.00028767,7]
[384956138,1757633519521,-400.0,0.00028767,7]
[384956139,1757633519530,-400.0,0.00028767,7]
[384956140,1757633519540,-453.86,0.00028767,7]
[384956141,1757633519550,-568.89,0.00028767,7]
[384956142,1757633519559,-593.01,0.00028767,7]
[384956143,1757633519569,-400.0,0.00028767,7]
[384956144,1757633519579,-429.11,0.00028767,7]
[384956145,1757633519588,-400.0,0.00028767,7]
[384956146,1757633519597,-611.58,0.00028767,7]
[384956147,1757633519607,-400.0,0.00028767,7]
[384956148,1757633519617,-565.02,0.00028767,7]
[384956149,1757633519627,-400.0,0.00028767,7]
[384956150,1757633519637,-400.0,0.00028767,7]
[384956151,1757633519647,-400.0,0.00028767,7]
[384956152,1757633519657,-400.0,0.00028767,7]
[384956153,1757633519667,-872.03,0.00028767,7]
[384956154,1757633519676,-808.85,0.00028767,7]
[384956155,1757633519686,-656.37,0.00028767,7]
[384956156,1757633519695,-400.0,0.00028767,7]
[384956157,1757633519705,-864.75,0.00028767,7]
[384956158,1757633519715,-400.0,0.00028767,7]
[384956159,1757633519725,-400.0,0.00028767,7]
[384956160,1757633519734,-701.7,0.00028767,7]
[384956161,1757633519743,-501.39,0.00028767,7]
[384956162,1757633519752,-400.0,0.00028767,7]
[384956163,1757633519762,-400.0,0.00028767,7]
[384956164,1757633519771,-400.0,0.00028767,7]
[384956165,1757633519780,-400.0,0.00028767,7]
[384956166,1757633519790,-960.23,0.00028767,7]
[384956167,1757633519800,-400.0,0.00028767,7]
[384956168,1757633519810,-400.0,0.00028767,7]
[384956169,1757633519819,-437.87,0.00028767,7]
[384956170,1757633519829,-400.0,0.00028767,7]
[384956171,1757633519838,-746.08,0.00028767,7]
[384956172,1757633519848,-553.27,0.00028767,7]
[384956173,1757633519858,-481.31,0.00028767,7]
[384956174,1757633519868,-599.2,0.00028767,7]
[384956175,1757633519878,-923.33,0.00028767,7]
[384956176,1757633519887,-654.29,0.00028767,7]
[384956177,1757633519897,-400.0,0.00028767,7]
[384956178,1757633519906,-400.0,0.00028767,7]
[384956179,1757633519916,-400.0,0.00028767,7]
[384956180,1757633519926,-453.16,0.00028767,7]
[384956181,1757633519935,-400.0,0.00028767,7]
[384956182,1757633519950,-400.0,0.00028767,7]
[384956183,1757633519959,-400.0,0.00028767,7]
[384956184,1757633519968,-400.0,0.00028767,7]
[384956185,1757633519977,-400.0,0.00028767,7]
[384956186,1757633519987,-400.0,0.00028767,7]
[384956187,1757633519996,-612.01,0.00028767,7]
[384956188,1757633520006,-400.0,0.00028767,7]
[384956189,1757633520018,-490.48,0.00028767,7]
[384956190,1757633520028,-785.9,0.00028767,7]
[384956191,1757633520037,-400.0,0.00028767,7]
[384956192,1757633520046,-616.16,0.00028767,7]
[384956193,1757633520056,-400.0,0.00028767,7]
[384956194,1757633520065,-440.78,0.00028767,7]
[384956195,1757633520074,-400.0,0.00028767,7]
[384956196,1757633520084,-492.6,0.00028767,7]
[384956197,1757633520093,-400.0,0.00028767,7]
[384956198,1757633520104,-400.0,0.00028767,7]
[384956199,1757633520114,-775.58,0.00028767,7]
[384956200,1757633520123,-1206.98,0.00028767,7]
[384956201,1757633520132,-439.47,0.00028767,7]
[384956202,1757633520142,-509.99,0.00028767,7]
[384956203,1757633520152,-963.12,0.00028767,7]
[384956204,1757633520162,-300.0,0.00028767,7]
[384956205,1757633520171,-638.33,0.00028767,7]
[384956206,1757633520181,-400.0,0.00028767,7]
[384956207,1757633520191,-544.4,0.00028767,7]
[384956208,1757633520200,-541.74,0.00028767,7]
[384956209,1757633520210,-400.0,0.00028767,7]
[384956210,1757633520220,-990.01,0.00028767,7]
[384956211,1757633520230,-400.0,0.00028767,7]
[384956212,1757633520240,-400.0,0.00028767,7]
[384956213,1757633520250,-686.43,0.00028767,7]
[384956214,1757633520260,-400.0,0.00028767,7]
[384956215,1757633520270,-400.0,0.00028767,7]
[384956216,1757633520280,-400.0,0.00028767,7]
[384956217,1757633520289,-400.0,0.00028767,7]
[384956218,1757633520299,-400.08,0.00028767,7]
[384956219,1757633520308,-613.72,0.00028767,7]
[384956220,1757633520317,-400.0,0.00028767,7]
[384956221,1757633520327,-724.69,0.00028767,7]
[384956222,1757633520336,-622.13,0.00028767,7]
[384956223,1757633520346,-400.0,0.00028767,7]
[384956224,1757633520355,-1069.41,0.00028767,7]
[384956225,1757633520364,-1059.75,0.00028767,7]
[384956226,1757633520374,-506.8,0.00028767,7]
[384956227,1757633520384,-400.0,0.00028767,7]
[384956228,1757633520393,-1004.03,0.00028767,7]
[384956229,1757633520403,-400.0,0.00028767,7]
[384956230,1757633520412,-400.0,0.00028767,7]
[384956231,1757633520421,-753.26,0.00028767,7]
[384956232,1757633520431,-400.0,0.00028767,7]
[384956233,1757633520440,-400.0,0.00028767,7]
[384956234,1757633520449,-400.0,0.00028767,7]
[384956235,1757633520459,-1145.31,0.00028767,7]
[384956236,1757633520468,-1353.57,0.00028767,7]
[384956237,1757633520477,-400.0,0.00028767,7]
[384956238,1757633520487,-411.17,0.00028767,7]
[384956239,1757633520496,-684.82,0.00028767,7]
[384956240,1757633520506,-400.0,0.00028767,7]
[384956241,1757633520515,-488.85,0.00028767,7]
[384956242,1757633520525,-657.64,0.00028767,7]
[384956243,1757633520534,-400.0,0.00028767,7]
[384956244,1757633520544,-485.19,0.00028767,7]
[384956245,1757633520554,-400.0,0.00028767,7]
[384956246,1757633520563,-400.0,0.00028767,7]
[384956247,1757633520573,-832.53,0.00028767,7]
[384956248,1757633520582,-400.0,0.00028767,7]
[384956249,1757633520591,-400.0,0.00028767,7]
[384956250,1757633520600,-400.0,0.00028767,7]
[384956251,1757633520610,-806.45,0.00028767,7]
[384956252,1757633520620,-499.10381958,0.00028767,7]
[384956253,1757633520630,-1109.35,0.00028767,7]
[384956254,1757633520639,-400.0,0.00028767,7]
[384956255,1757633520648,-1282.14,0.00028767,7]
[384956256,1757633520658,-400.0,0.00028767,7]
[384956257,1757633520667,-1045.02,0.00028767,7]
[384956258,1757633520677,-400.0,0.00028767,7]
[384956259,1757633520687,-1806.64,0.00028767,7]
[384956260,1757633520696,-750.57,0.00028767,7]
[384956261,1757633520707,-1028.56,0.00028767,7]
[384956262,1757633520717,-1128.76,0.00028767,7]
[384956263,1757633520727,-503.43,0.00028767,7]
[384956264,1757633520738,-1374.45,0.00028767,7]
[384956265,1757633520748,-400.0,0.00028767,7]
[384956266,1757633520758,-452.16,0.00028767,7]
[384956267,1757633520768,-1090.41,0.00028767,7]
[384956268,1757633520777,-424.11,0.00028767,7]
[384956269,1757633520787,-632.34,0.00028767,7]
[384956270,1757633520796,-180.48551704,0.00028767,7]
[384956271,1757633520806,-494.59,0.00028767,7]
[384956272,1757633520819,-400.0,0.00028767,7]
[384956273,1757633520828,-400.0,0.00028767,7]
[384956274,1757633520838,-1437.02,0.00028767,7]
[384956275,1757633520847,-400.0,0.00028767,7]
[384956276,1757633520857,-459.927667,0.00028767,7]
[384956277,1757633520868,-400.0,0.00028767,7]
[384956278,1757633520878,-400.0,0.00028767,7]
[384956279,1757633520887,-1198.42,0.00028767,7]
[384956280,1757633520908,-565.03,0.00028767,7]
[384956281,1757633520920,-659.58,0.00028767,7]
[384956282,1757633520930,-1075.82,0.00028767,7]
[384956283,1757633520941,-1181.4,0.00028767,7]
[384956284,1757633520951,-400.0,0.00028767,7]
[384956285,1757633520961,-1195.49,0.00028767,7]
[384956286,1757633520971,-400.0,0.00028767,7]
[384956287,1757633520981,-1024.21,0.00028767,7]
[384956288,1757633520990,-438.81,0.00028767,7]
[384956289,1757633521001,-410.71,0.00028767,7]
[384956290,1757633521014,-1527.6,0.00028767,7]
[384956291,1757633521024,-400.0,0.00028767,7]
[384956292,1757633521034,-400.0,0.00028767,7]
[384956293,1757633521043,-485.99,0.00028767,7]
[384956294,1757633521055,-1028.89,0.00028767,7]
[384956295,1757633521065,-1724.24,0.00028767,7]
[384956296,1757633521075,-432.8,0.00028767,7]
[384956297,1757633521085,-1062.78,0.00028767,7]
[384956298,1757633521095,-400.0,0.00028767,7]
[384956299,1757633521105,-400.0,0.00028767,7]
[384956300,1757633521115,-400.0,0.00028767,7]
[384956301,1757633521126,-619.4,0.00028767,7]
[384956302,1757633521136,-1272.98,0.00028767,7]
[384956303,1757633521146,-773.47,0.00028767,7]
[384956304,1757633521155,-929.55,0.00028767,7]
[384956305,1757633521165,-779.09,0.00028767,7]
[384956306,1757633521175,-400.0,0.00028767,7]
[384956307,1757633521185,-424.15,0.00028767,7]
[384956308,1757633521195,-1542.93,0.00028767,7]
[384956309,1757633521205,-2796.58,0.00028767,7]
[384956310,1757633521214,-1477.0,0.00028767,7]
[384956311,1757633521224,-1213.31,0.00028767,7]
[384956312,1757633521234,-1699.32,0.00028767,7]
[384956313,1757633521244,-400.0,0.00028767,7]
[384956314,1757633521254,-400.0,0.00028767,7]
[384956315,1757633521263,-678.5,0.00028767,7]
[384956316,1757633521273,-1111.24,0.00028767,7]
[384956317,1757633521282,-1277.28,0.00028767,7]
[384956318,1757633521291,-523.02,0.00028767,7]
[384956319,1757633521300,-400.0,0.00028767,7]
[384956320,1757633521310,-1035.53,0.00028767,7]
[384956321,1757633521320,-1081.61,0.00028767,7]
[384956322,1757633521330,-575.06,0.00028767,7]
[384956323,1757633521340,-242.36602291,0.00028767,7]
[384956324,1757633521349,-1453.23,0.00028767,7]
[384956325,1757633521359,-543.93,0.00028767,7]
[384956326,1757633521369,-400.0,0.00028767,7]
[384956327,1757633521379,-400.0,0.00028767,7]
[384956328,1757633521389,-945.63,0.00028767,7]
[384956329,1757633521399,-1445.03,0.00028767,7]
[384956330,1757633521409,-4294.71,0.00028767,5]
[384956331,1757633521418,-752.34,0.00028767,7]
[384956332,1757633521428,-467.41,0.00028767,7]
[384956333,1757633521438,-400.0,0.00028767,7]
[384956334,1757633521447,-984.14,0.00028767,7]
[384956335,1757633521457,-400.0,0.00028767,7]